fUST/lending_fUST_20251231
["ID","MTS","AMOUNT","RATE_DAILY","PERIOD"]
[400162000,1767161454465,-151.76,0.000298,2]
[400162001,1767161454475,-1000.0,0.00029841,7]
[400162002,1767161454484,-1000.0,0.00029858,7]
[400162003,1767161454493,-500.0,0.00029863,60]
[400162004,1767161454503,-1000.0,0.00029888,7]
[400162005,1767161454512,-166.25,0.000299,7]
[400162006,1767161454522,-151.76,0.000299,2]
[400162007,1767161454531,-185.64986707,0.0002993,7]
[400162008,1767161454541,-274.0,0.00029983,10]
[400162009,1767161454551,-20727.0,0.00029983,10]
[400162010,1767161454564,-446.0,0.00029983,10]
[400162011,1767161454573,-500.0,0.0003,60]
[400162012,1767161454583,-1500.0,0.0003,2]
[400162013,1767161454593,-726.0,0.0003008,3]
[400162014,1767161454603,-186.0,0.00030093,4]
[400162015,1767161454612,-500.0,0.00030093,7]
[400162016,1767161454621,-1041.66666667,0.000301,7]
[400162017,1767161454632,-151.76,0.000301,2]
[400162018,1767161454645,-491.17925611,0.00030137,60]
[400162019,1767161454654,-10682.31729811,0.00030164,2]
[400162020,1767161454664,-1000.0,0.00030197,7]
[400162021,1767161454674,-1380.56,0.000302,14]
[400162022,1767161454683,-151.0,0.000302,31]
[400162023,1767161454693,-151.0,0.000302,31]
[400162024,1767161454703,-151.0,0.000302,7]
[400162025,1767161454712,-151.0,0.000302,7]
[400162026,1767161454722,-151.0,0.000302,31]
[400162027,1767161454731,-151.0,0.000302,31]
[400162028,1767161454741,-151.0,0.000302,31]
[400162029,1767161454751,-151.0,0.000302,31]
[400162030,1767161454762,-151.0,0.000302,31]
[400162031,1767161454771,-151.0,0.000302,31]
[400162032,1767161454781,-151.0,0.000302,31]
[400162033,1767161454791,-300.34133,0.000302,31]
[400162034,1767161454800,-210.696924,0.000302,31]
[400162035,1767161454810,-210.696924,0.000302,31]
[400162036,1767161454820,-210.696924,0.000302,31]
[400162037,1767161454829,-210.696924,0.000302,31]
[400162038,1767161454839,-151.0,0.000302,31]
[400162039,1767161454849,-151.0,0.000302,31]
[400162040,1767161454858,-151.0,0.000302,31]
[400162041,1767161454867,-151.0,0.000302,31]
[400162042,1767161454877,-194.747586,0.000302,31]
[400162043,1767161454887,-194.747586,0.000302,31]
[400162044,1767161454896,-151.0,0.000302,31]
[400162045,1767161454907,-194.747586,0.000302,31]
[400162046,1767161454916,-151.0,0.000302,31]
[400162047,1767161454926,-194.747586,0.000302,31]
[400162048,1767161454935,-151.0,0.000302,31]
[400162049,1767161454944,-177.291107,0.000302,7]
[400162050,1767161454954,-151.0,0.000302,31]
[400162051,1767161454964,-307.545551,0.000302,31]
[400162052,1767161454974,-435.404982,0.000302,31]
[400162053,1767161454984,-262.904127,0.000302,31]
[400162054,1767161454994,-307.545551,0.000302,31]
[400162055,1767161455003,-435.404982,0.000302,31]
[400162056,1767161455013,-262.904127,0.000302,31]
[400162057,1767161455022,-307.545551,0.000302,31]
[400162058,1767161455031,-435.404982,0.000302,31]
[400162059,1767161455041,-262.904127,0.000302,31]
[400162060,1767161455051,-435.404982,0.000302,31]
[400162061,1767161455061,-307.545551,0.000302,31]
[400162062,1767161455070,-151.0,0.000302,31]
[400162063,1767161455080,-262.904127,0.000302,31]
[400162064,1767161455091,-151.0,0.000302,31]
[400162065,1767161455107,-151.0,0.000302,31]
[400162066,1767161455127,-177.644782,0.000302,31]
[400162067,1767161455143,-193.357014,0.000302,31]
[400162068,1767161455154,-193.357014,0.000302,31]
[400162069,1767161455165,-193.357014,0.000302,31]
[400162070,1767161455176,-193.357014,0.000302,31]
[400162071,1767161455185,-151.76,0.000302,2]
[400162072,1767161455195,-500.0,0.00030229,7]
[400162073,1767161455206,-1000.0,0.00030251,7]
[400162074,1767161455216,-14885.98,0.000303,2]
[400162075,1767161455227,-11598.2987195,0.00030339,2]
[400162076,1767161455238,-1000.0,0.00030627,7]
[400162077,1767161455248,-726.0,0.00030649,3]
[400162078,1767161455258,-236.53722422,0.00030832,24]
[400162079,1767161455267,-956.2,0.00030958,30]
[400162080,1767161455279,-5000.0,0.00030994,2]
[400162081,1767161455290,-170.3106696,0.00031,120]
[400162082,1767161455300,-304.88097507,0.00031,120]
[400162083,1767161455309,-191.03727861,0.00031,120]
[400162084,1767161455319,-1003.0,0.00031,2]
[400162085,1767161455328,-208.71990515,0.00031,120]
[400162086,1767161455337,-309.65070131,0.00031,120]
[400162087,1767161455347,-178.8674121,0.00031,120]
[400162088,1767161455357,-161.01318651,0.00031,120]
[400162089,1767161455366,-206.24088796,0.00031,120]
[400162090,1767161455375,-301.14881915,0.00031,120]
[400162091,1767161455385,-162.37843672,0.00031,120]
[400162092,1767161455394,-183.49170094,0.00031,120]
[400162093,1767161455403,-1125.59637478,0.00031,120]
[400162094,1767161455412,-183.42010434,0.00031,120]
[400162095,1767161455422,-1000.0,0.00031105,7]
[400162096,1767161455432,-2457.50720009,0.00031137,2]
[400162097,1767161455442,-151.0,0.0003118,31]
[400162098,1767161455451,-151.0,0.0003118,31]
[400162099,1767161455461,-281.615911,0.0003118,31]
[400162100,1767161455471,-263.107289,0.0003118,31]
[400162101,1767161455480,-263.107289,0.0003118,31]
[400162102,1767161455490,-263.107289,0.0003118,31]
[400162103,1767161455499,-151.0,0.0003118,31]
[400162104,1767161455508,-279.119257,0.0003118,31]
[400162105,1767161455518,-263.107289,0.0003118,31]
[400162106,1767161455528,-275.219476,0.0003118,31]
[400162107,1767161455538,-151.0,0.0003118,31]
[400162108,1767161455548,-151.0,0.0003118,31]
[400162109,1767161455558,-275.219476,0.0003118,31]
[400162110,1767161455572,-151.0,0.0003118,31]
[400162111,1767161455582,-275.219476,0.0003118,31]
[400162112,1767161455592,-151.0,0.0003118,31]
[400162113,1767161455601,-275.219476,0.0003118,31]
[400162114,1767161455612,-307.660295,0.0003118,31]
[400162115,1767161455622,-307.660295,0.0003118,31]
[400162116,1767161455632,-307.660295,0.0003118,31]
[400162117,1767161455645,-307.660295,0.0003118,31]
[400162118,1767161455654,-1046.649437,0.0003118,31]
[400162119,1767161455664,-1046.649437,0.0003118,31]
[400162120,1767161455674,-1046.649437,0.0003118,31]
[400162121,1767161455684,-1046.649437,0.0003118,31]
[400162122,1767161455693,-1328.264432,0.0003118,31]
[400162123,1767161455703,-1328.264432,0.0003118,31]
[400162124,1767161455713,-1328.264432,0.0003118,31]
[400162125,1767161455722,-414.72566,0.0003118,31]
[400162126,1767161455731,-1328.264432,0.0003118,31]
[400162127,1767161455743,-414.72566,0.0003118,31]
[400162128,1767161455752,-414.72566,0.0003118,31]
[400162129,1767161455762,-414.72566,0.0003118,31]
[400162130,1767161455772,-160.73,0.000312,7]
[400162131,1767161455782,-432.561823,0.00031265,31]
[400162132,1767161455792,-432.561823,0.00031265,31]
[400162133,1767161455801,-432.561823,0.00031265,31]
[400162134,1767161455811,-432.561823,0.00031265,31]
[400162135,1767161455820,-151.0,0.00031265,31]
[400162136,1767161455830,-151.0,0.00031265,31]
[400162137,1767161455839,-1364.0,0.00031299,2]
[400162138,1767161455849,-2156.0,0.00031299,2]
[400162139,1767161455858,-627.0,0.00031299,2]
[400162140,1767161455868,-150.0,0.00031299,2]
[400162141,1767161455878,-416.0,0.00031299,2]
[400162142,1767161455888,-416.0,0.00031299,2]
[400162143,1767161455899,-1000.0,0.00031348,7]
[400162144,1767161455908,-6831.4225511,0.00031414,2]
[400162145,1767161455918,-2000.0,0.00031429,7]
[400162146,1767161455928,-1000.0,0.0003144,7]
[400162147,1767161455939,-2457.50720009,0.00031505,2]
[400162148,1767161455949,-956.2,0.00031506,31]
[400162149,1767161455958,-2457.50720009,0.00031593,2]
[400162150,1767161455967,-867.96456977,0.00031634,15]
[400162151,1767161455977,-939.39763204,0.00031657,2]
[400162152,1767161455986,-1000.0,0.00031729,7]
[400162153,1767161455996,-186.0,0.0003182,4]
[400162154,1767161456007,-2457.50720009,0.00031883,2]
[400162155,1767161456016,-304.88097507,0.000319,120]
[400162156,1767161456026,-191.03727861,0.000319,120]
[400162157,1767161456035,-208.71990515,0.000319,120]
[400162158,1767161456045,-166.25,0.000319,7]
[400162159,1767161456055,-178.8674121,0.000319,120]
[400162160,1767161456064,-161.01318651,0.000319,120]
[400162161,1767161456074,-301.14881915,0.000319,120]
[400162162,1767161456083,-162.37843672,0.000319,120]
[400162163,1767161456093,-183.49170094,0.000319,120]
[400162164,1767161456102,-1125.59637478,0.000319,120]
[400162165,1767161456112,-183.42010434,0.000319,120]
[400162166,1767161456122,-726.0,0.00031908,3]
[400162167,1767161456132,-236.53722422,0.00031919,26]
[400162168,1767161456141,-726.0,0.00032039,3]
[400162169,1767161456151,-5000.0,0.00032053,15]
[400162170,1767161456160,-956.2,0.00032054,32]
[400162171,1767161456170,-2457.50720009,0.00032055,2]
[400162172,1767161456180,-160.0,0.00032158,3]
[400162173,1767161456190,-1000.0,0.00032285,7]
[400162174,1767161456200,-14885.98,0.000323,2]
[400162175,1767161456210,-1000.0,0.00032308,30]
[400162176,1767161456219,-1000.0,0.00032308,30]
[400162177,1767161456229,-1000.0,0.00032308,30]
[400162178,1767161456239,-715.0,0.00032308,30]
[400162179,1767161456249,-500.0,0.00032387,7]
[400162180,1767161456259,-500.0,0.00032406,7]
[400162181,1767161456268,-5000.0,0.0003249,15]
[400162182,1767161456279,-2457.50720009,0.00032508,2]
[400162183,1767161456289,-206.92129876,0.00032535,2]
[400162184,1767161456298,-409.54232223,0.00032535,2]
[400162185,1767161456308,-205.07724279,0.00032535,2]
[400162186,1767161456318,-409.54047817,0.00032535,2]
[400162187,1767161456327,-409.74494141,0.00032535,2]
[400162188,1767161456337,-409.74514588,0.00032535,2]
[400162189,1767161456347,-1918.46508754,0.00032537,7]
[400162190,1767161456357,-5000.0,0.00032548,10]
[400162191,1767161456367,-5000.0,0.00032601,15]
[400162192,1767161456376,-956.2,0.00032602,33]
[400162193,1767161456386,-726.0,0.00032679,11]
[400162194,1767161456395,-726.0,0.00032679,11]
[400162195,1767161456405,-2457.50720009,0.00032708,2]
[400162196,1767161456417,-200.0,0.0003287,120]
[400162197,1767161456426,-5000.0,0.00032876,10]
[400162198,1767161456436,-516.77672992,0.00032877,8]
[400162199,1767161456446,-274.32,0.00032877,10]
[400162200,1767161456455,-523.1,0.00032877,10]
[400162201,1767161456465,-500.0,0.00032877,5]
[400162202,1767161456475,-150.0,0.00032877,5]
[400162203,1767161456484,-304.88097507,0.000329,120]
[400162204,1767161456493,-191.03727861,0.000329,120]
[400162205,1767161456503,-1380.56,0.000329,30]
[400162206,1767161456512,-162.4,0.000329,7]
[400162207,1767161456522,-178.8674121,0.000329,120]
[400162208,1767161456532,-161.01318651,0.000329,120]
[400162209,1767161456541,-301.14881915,0.000329,120]
[400162210,1767161456550,-162.37843672,0.000329,120]
[400162211,1767161456561,-183.49170094,0.000329,120]
[400162212,1767161456573,-1125.59637478,0.000329,120]
[400162213,1767161456583,-183.42010434,0.000329,120]
[400162214,1767161456592,-1000.0,0.000329,120]
[400162215,1767161456603,-5000.0,0.00032999,15]
[400162216,1767161456612,-156.0,0.00033,120]
[400162217,1767161456622,-472.97444844,0.00033006,27]
[400162218,1767161456633,-2457.50720009,0.00033065,2]
[400162219,1767161456642,-5000.0,0.00033149,15]
[400162220,1767161456652,-956.2,0.0003315,34]
[400162221,1767161456662,-5000.0,0.00033199,15]
[400162222,1767161456671,-179.95097548,0.000332,117]
[400162223,1767161456680,-179.95097547,0.000332,117]
[400162224,1767161456691,-2457.50720009,0.00033218,2]
[400162225,1767161456701,-2863.2521,0.0003322,30]
[400162226,1767161456711,-5000.0,0.00033369,11]
[400162227,1767161456720,-1004.98248976,0.00033425,5]
[400162228,1767161456837,-6831.4225511,0.0003347,2]
[400162229,1767161456848,-2457.50720009,0.00033536,2]
[400162230,1767161456857,-186.0,0.00033547,5]
[400162231,1767161456867,-999.78747981,0.00033657,120]
[400162232,1767161456877,-726.0,0.0003369,11]
[400162233,1767161456886,-874.0,0.0003369,11]
[400162234,1767161456896,-5000.0,0.00033697,15]
[400162235,1767161456906,-956.2,0.00033698,35]
[400162236,1767161456915,-250.0,0.00033699,5]
[400162237,1767161456925,-200.26076,0.000337,120]
[400162238,1767161456935,-151.0,0.00033746,31]
[400162239,1767161456944,-151.0,0.00033746,31]
[400162240,1767161456954,-151.0,0.00033746,31]
[400162241,1767161456964,-221.765393,0.00033746,31]
[400162242,1767161456973,-151.0,0.00033746,31]
[400162243,1767161456982,-160.429789,0.00033746,31]
[400162244,1767161456992,-151.0,0.00033746,31]
[400162245,1767161457001,-726.0,0.00033808,11]
[400162246,1767161457012,-10682.31729811,0.00033873,2]
[400162247,1767161457022,-2457.50720009,0.00033876,2]
[400162248,1767161457031,-304.88097507,0.000339,120]
[400162249,1767161457041,-191.03727861,0.000339,120]
[400162250,1767161457050,-160.73,0.000339,7]
[400162251,1767161457059,-178.8674121,0.000339,120]
[400162252,1767161457068,-161.01318651,0.000339,120]
[400162253,1767161457077,-301.14881915,0.000339,120]
[400162254,1767161457087,-162.37843672,0.000339,120]
[400162255,1767161457097,-183.49170094,0.000339,120]
[400162256,1767161457106,-1125.59637478,0.000339,120]
[400162257,1767161457116,-726.0,0.00033997,11]
[400162258,1767161457126,-645.96236021,0.00034,30]
[400162259,1767161457135,-11598.2987195,0.00034001,2]
[400162260,1767161457145,-2457.50720009,0.00034135,2]
[400162261,1767161457154,-295.735,0.000342,20]
[400162262,1767161457163,-295.73,0.000342,20]
[400162263,1767161457172,-5000.0,0.00034245,15]
[400162264,1767161457182,-956.2,0.00034246,36]
[400162265,1767161457192,-2457.50720009,0.00034285,2]
[400162266,1767161457201,-2000.0,0.00034286,7]
[400162267,1767161457211,-1364.0,0.00034299,2]
[400162268,1767161457219,-2156.0,0.00034299,2]
[400162269,1767161457228,-627.0,0.00034299,2]
[400162270,1767161457238,-150.0,0.00034299,2]
[400162271,1767161457247,-416.0,0.00034299,2]
[400162272,1767161457259,-416.0,0.00034299,2]
[400162273,1767161457269,-726.0,0.0003433,11]
[400162274,1767161457279,-450.50848757,0.00034521,5]
[400162275,1767161457289,-2457.50720009,0.00034529,2]
[400162276,1767161457298,-5000.0,0.00034793,15]
[400162277,1767161457307,-956.2,0.00034794,37]
[400162278,1767161457317,-14885.98,0.000348,14]
[400162279,1767161457327,-5000.0,0.00034817,5]
[400162280,1767161457336,-2457.50720009,0.0003483,2]
[400162281,1767161457346,-304.88097507,0.000349,120]
[400162282,1767161457355,-161.01318651,0.000349,120]
[400162283,1767161457364,-301.14881915,0.000349,120]
[400162284,1767161457373,-1125.59637478,0.000349,120]
[400162285,1767161457382,-151.19,0.00034921,60]
[400162286,1767161457392,-160.05,0.00034921,60]
[400162287,1767161457402,-10000.0,0.00034951,2]
[400162288,1767161457412,-5000.0,0.00034999,14]
[400162289,1767161457422,-898.577244,0.00034999,31]
[400162290,1767161457431,-898.577244,0.00034999,31]
[400162291,1767161457441,-898.577244,0.00034999,31]
[400162292,1767161457450,-898.577244,0.00034999,31]
[400162293,1767161457460,-151.0,0.00034999,31]
[400162294,1767161457469,-151.0,0.00034999,31]
[400162295,1767161457478,-643.406088,0.00034999,31]
[400162296,1767161457487,-151.0,0.00034999,31]
[400162297,1767161457496,-643.406088,0.00034999,31]
[400162298,1767161457505,-225.531024,0.00034999,31]
[400162299,1767161457515,-151.743207,0.00034999,31]
[400162300,1767161457524,-643.406088,0.00034999,31]
[400162301,1767161457533,-643.406088,0.00034999,31]
[400162302,1767161457542,-151.0,0.00034999,31]
[400162303,1767161457552,-151.0,0.00034999,31]
[400162304,1767161457563,-443.0,0.00035,10]
[400162305,1767161457575,-151.19,0.00035021,60]
[400162306,1767161457585,-160.05,0.00035021,60]
[400162307,1767161457594,-726.0,0.00035087,11]
[400162308,1767161457603,-151.19,0.00035121,60]
[400162309,1767161457615,-160.05,0.00035121,60]
[400162310,1767161457625,-500.0,0.00035144,14]
[400162311,1767161457634,-151.19,0.00035221,60]
[400162312,1767161457646,-160.05,0.00035221,60]
[400162313,1767161457656,-186.0,0.00035273,6]
[400162314,1767161457665,-2457.50720009,0.00035279,2]
[400162315,1767161457675,-5000.0,0.00035284,6]
[400162316,1767161457684,-600.0,0.00035292,2]
[400162317,1767161457694,-151.21868735,0.00035321,60]
[400162318,1767161457703,-160.05,0.00035321,60]
[400162319,1767161457713,-5000.0,0.00035327,3]
[400162320,1767161457723,-5000.0,0.00035341,15]
[400162321,1767161457732,-956.2,0.00035342,38]
[400162322,1767161457741,-5000.0,0.00035403,15]
[400162323,1767161457750,-160.05,0.00035421,60]
[400162324,1767161457760,-2457.50720009,0.00035495,2]
[400162325,1767161457769,-1380.56,0.000355,30]
[400162326,1767161457779,-160.05,0.00035521,60]
[400162327,1767161457789,-6831.4225511,0.00035526,2]
[400162328,1767161457799,-1000.0,0.00035539,30]
[400162329,1767161457808,-1000.0,0.00035539,30]
[400162330,1767161457818,-1000.0,0.00035539,30]
[400162331,1767161457827,-200.0,0.000356,120]
[400162332,1767161457837,-151.0,0.00035616,31]
[400162333,1767161457847,-160.05,0.00035621,60]
[400162334,1767161457856,-1060.17732759,0.00035657,120]
[400162335,1767161457866,-4200.02066496,0.00035659,2]
[400162336,1767161457878,-600.0,0.00035659,2]
[400162337,1767161457888,-2457.50720009,0.00035667,2]
[400162338,1767161457898,-160.12242314,0.00035721,60]
[400162339,1767161457908,-184.1677213,0.00035726,30]
[400162340,1767161457918,-184.1677213,0.00035726,30]
[400162341,1767161457927,-5000.0,0.00035738,3]
[400162342,1767161457936,-5000.0,0.00035758,15]
[400162343,1767161457946,-726.0,0.00035858,11]
[400162344,1767161457955,-5000.0,0.00035889,15]
[400162345,1767161457964,-956.2,0.0003589,39]
[400162346,1767161457974,-190.9,0.000359,2]
[400162347,1767161457984,-2457.50720009,0.00035912,2]
[400162348,1767161457993,-1198.1914158,0.00035943,30]
[400162349,1767161458003,-5000.0,0.00035999,7]
[400162350,1767161458013,-5000.0,0.00035999,15]
[400162351,1767161458022,-160.73,0.00036,7]
[400162352,1767161458032,-1017.21903832,0.00036,7]
[400162353,1767161458043,-167.0,0.00036,30]
[400162354,1767161458053,-600.0,0.00036027,2]
[400162355,1767161458062,-303.4572356,0.00036055,30]
[400162356,1767161458072,-1209.4333455,0.00036055,30]
[400162357,1767161458081,-303.4572356,0.00036055,30]
[400162358,1767161458091,-153.0,0.00036055,30]
[400162359,1767161458101,-303.4572356,0.00036055,30]
[400162360,1767161458110,-153.0,0.00036055,30]
[400162361,1767161458120,-153.0,0.00036055,30]
[400162362,1767161458130,-153.0,0.00036055,30]
[400162363,1767161458139,-193.3811029,0.00036055,30]
[400162364,1767161458149,-153.0,0.00036055,30]
[400162365,1767161458158,-193.3811029,0.00036055,30]
[400162366,1767161458168,-193.3811029,0.00036055,30]
[400162367,1767161458178,-193.3811029,0.00036055,30]
[400162368,1767161458187,-328190.80734864,0.00036067,7]
[400162369,1767161458196,-304.897,0.00036113,44]
[400162370,1767161458206,-152.24102269,0.00036117,7]
[400162371,1767161458215,-800.0,0.00036174,7]
[400162372,1767161458224,-5000.0,0.00036259,15]
[400162373,1767161458233,-800.0,0.00036267,7]
[400162374,1767161458243,-800.0,0.00036274,7]
[400162375,1767161458252,-800.0,0.00036285,7]
[400162376,1767161458261,-800.0,0.00036288,7]
[400162377,1767161458270,-500.0,0.0003633,30]
[400162378,1767161458279,-800.0,0.00036334,7]
[400162379,1767161458289,-800.0,0.00036359,7]
[400162380,1767161458299,-600.0,0.00036394,2]
[400162381,1767161458308,-800.0,0.00036395,7]
[400162382,1767161458318,-2457.50720009,0.00036419,2]
[400162383,1767161458327,-5000.0,0.00036437,15]
[400162384,1767161458337,-956.2,0.00036438,40]
[400162385,1767161458346,-2457.50720011,0.0003644,2]
[400162386,1767161458356,-800.0,0.00036443,7]
[400162387,1767161458365,-800.0,0.00036509,7]
[400162388,1767161458374,-800.0,0.00036522,7]
[400162389,1767161458383,-500.0,0.0003653,30]
[400162390,1767161458392,-184.1677213,0.00036548,30]
[400162391,1767161458402,-184.1677213,0.00036548,30]
[400162392,1767161458411,-184.1677213,0.00036548,30]
[400162393,1767161458421,-800.0,0.00036548,7]
[400162394,1767161458430,-5000.0,0.0003656,8]
[400162395,1767161458439,-202.21692804,0.00036582,8]
[400162396,1767161458447,-202.21692799,0.00036582,8]
[400162397,1767161458457,-202.21692799,0.00036582,8]
[400162398,1767161458466,-202.21692799,0.00036582,8]
[400162399,1767161458475,-202.21692799,0.00036582,8]
[400162400,1767161458484,-202.21692799,0.00036582,8]
[400162401,1767161458494,-202.21692799,0.00036582,8]
[400162402,1767161458503,-202.21692799,0.00036582,8]
[400162403,1767161458513,-202.21692799,0.00036582,8]
[400162404,1767161458522,-202.21692799,0.00036582,8]
[400162405,1767161458531,-202.21692799,0.00036582,8]
[400162406,1767161458540,-202.21692799,0.00036582,8]
[400162407,1767161458550,-202.21692799,0.00036582,8]
[400162408,1767161458559,-5000.0,0.00036587,15]
[400162409,1767161458572,-151.0,0.00036588,31]
[400162410,1767161458582,-151.0,0.00036588,31]
[400162411,1767161458591,-2077.549415,0.00036588,31]
[400162412,1767161458600,-151.0,0.00036588,31]
[400162413,1767161458611,-2077.549415,0.00036588,31]
[400162414,1767161458620,-151.0,0.00036588,31]
[400162415,1767161458630,-2077.549415,0.00036588,31]
[400162416,1767161458642,-151.0,0.00036588,31]
[400162417,1767161458652,-2077.549415,0.00036588,31]
[400162418,1767161458661,-151.0,0.00036588,31]
[400162419,1767161458670,-151.0,0.00036588,31]
[400162420,1767161458680,-151.0,0.00036588,31]
[400162421,1767161458689,-249.08345827,0.00036588,31]
[400162422,1767161458699,-156.190121,0.00036588,28]
[400162423,1767161458710,-156.190121,0.00036588,28]
[400162424,1767161458719,-156.190121,0.00036588,28]
[400162425,1767161458729,-156.190121,0.00036588,28]
[400162426,1767161458740,-151.0,0.00036588,31]
[400162427,1767161458750,-151.0,0.00036588,31]
[400162428,1767161458760,-151.0,0.00036588,31]
[400162429,1767161458770,-151.0,0.00036588,31]
[400162430,1767161458780,-151.0,0.00036588,31]
[400162431,1767161458789,-297.109657,0.00036588,31]
[400162432,1767161458799,-5000.0,0.00036606,15]
[400162433,1767161458808,-800.0,0.00036694,7]
[400162434,1767161458818,-500.0,0.0003673,30]
[400162435,1767161458828,-299.0,0.0003674,2]
[400162436,1767161458838,-299.0,0.0003674,2]
[400162437,1767161458847,-299.0,0.0003674,2]
[400162438,1767161458857,-299.0,0.0003674,2]
[400162439,1767161458867,-299.0,0.0003674,2]
[400162440,1767161458876,-299.0,0.0003674,2]
[400162441,1767161458885,-5000.0,0.00036761,2]
[400162442,1767161458895,-600.0,0.00036762,2]
[400162443,1767161458905,-800.0,0.00036763,7]
[400162444,1767161458914,-299.0,0.00036767,2]
[400162445,1767161458923,-299.0,0.00036767,2]
[400162446,1767161458932,-299.0,0.00036767,2]
[400162447,1767161458941,-299.0,0.00036767,2]
[400162448,1767161458951,-299.0,0.00036767,2]
[400162449,1767161458959,-299.0,0.00036767,2]
[400162450,1767161458968,-299.0,0.00036767,2]
[400162451,1767161458977,-299.0,0.00036767,2]
[400162452,1767161458986,-299.0,0.00036767,2]
[400162453,1767161458996,-299.0,0.00036767,2]
[400162454,1767161459005,-299.0,0.00036767,2]
[400162455,1767161459014,-299.0,0.00036767,2]
[400162456,1767161459024,-800.0,0.00036769,7]
[400162457,1767161459033,-160.0,0.00036775,4]
[400162458,1767161459042,-212.66299434,0.00036775,5]
[400162459,1767161459051,-800.0,0.0003678,7]
[400162460,1767161459060,-800.0,0.00036781,7]
[400162461,1767161459069,-5000.0,0.00036787,15]
[400162462,1767161459078,-61553.30499462,0.00036788,30]
[400162463,1767161459088,-541.24389104,0.00036788,14]
[400162464,1767161459097,-346.0,0.00036788,14]
[400162465,1767161459106,-346.0,0.00036788,14]
[400162466,1767161459116,-346.0,0.00036788,14]
[400162467,1767161459125,-152.0,0.00036788,14]
[400162468,1767161459135,-346.0,0.00036788,14]
[400162469,1767161459144,-152.0,0.00036788,14]
[400162470,1767161459154,-346.0,0.00036788,14]
[400162471,1767161459163,-152.0,0.00036788,14]
[400162472,1767161459174,-346.0,0.00036788,14]
[400162473,1767161459183,-166.0,0.00036788,14]
[400162474,1767161459292,-152.0,0.00036788,14]
[400162475,1767161459302,-166.0,0.00036788,14]
[400162476,1767161459311,-346.0,0.00036788,14]
[400162477,1767161459320,-298.50338672,0.00036788,14]
[400162478,1767161459330,-166.0,0.00036788,14]
[400162479,1767161459339,-346.0,0.00036788,14]
[400162480,1767161459348,-166.0,0.00036788,14]
[400162481,1767161459357,-346.0,0.00036788,14]
[400162482,1767161459366,-166.0,0.00036788,14]
[400162483,1767161459375,-346.0,0.00036788,14]
[400162484,1767161459384,-166.0,0.00036788,14]
[400162485,1767161459394,-346.0,0.00036788,14]
[400162486,1767161459403,-166.0,0.00036788,14]
[400162487,1767161459412,-163.0,0.00036788,14]
[400162488,1767161459422,-346.0,0.00036788,14]
[400162489,1767161459431,-172.0,0.00036788,14]
[400162490,1767161459440,-346.0,0.00036788,14]
[400162491,1767161459449,-203.09697627,0.00036788,14]
[400162492,1767161459459,-346.0,0.00036788,14]
[400162493,1767161459468,-346.0,0.00036788,14]
[400162494,1767161459478,-346.0,0.00036788,14]
[400162495,1767161459487,-346.0,0.00036788,14]
[400162496,1767161459497,-346.0,0.00036788,14]
[400162497,1767161459506,-346.0,0.00036788,14]
[400162498,1767161459516,-346.0,0.00036788,14]
[400162499,1767161459525,-346.0,0.00036788,14]